[Event "GrandPrix_29.05"]
[Site "Chess.com"]
[Date "2020.05.29"]
[Round "3"]
[White "GM_LOADING"]
[Black "Magicmaster17"]
[Result "0-1"]
[WhiteElo "2325"]
[BlackElo "2306"]
[TimeControl "600+2"]
[EndTime "10:28:44 PDT"]
[Termination "Magicmaster17 won by checkmate"]

1. e4 {[%clk 0:10:01.9]} 1... e5 {[%clk 0:09:59.7]} 2. Nf3 {[%clk 0:10:00.5]}
2... Nc6 {[%clk 0:10:00.7]} 3. Bc4 {[%clk 0:10:01.3]} 3... Nf6 {[%clk
0:09:48.3]} 4. d3 {[%clk 0:10:02]} 4... Bc5 {[%clk 0:09:40.7]} 5. O-O {[%clk
0:10:02.6]} 5... O-O {[%clk 0:09:40.7]} 6. h3 {[%clk 0:10:03.2]} 6... a6 {[%clk
0:09:29.1]} 7. a4 {[%clk 0:10:03.4]} 7... d6 {[%clk 0:09:16.3]} 8. Re1 {[%clk
0:09:59.3]} 8... h6 {[%clk 0:09:13.4]} 9. c3 {[%clk 0:10:00.1]} 9... Re8 {[%clk
0:09:07.6]} 10. b4 {[%clk 0:09:59.5]} 10... Ba7 {[%clk 0:09:08]} 11. Nbd2 {[%clk
0:10:00.8]} 11... Be6 {[%clk 0:09:07.7]} 12. Bxe6 {[%clk 0:10:01.2]} 12... Rxe6
{[%clk 0:09:08.3]} 13. Qc2 {[%clk 0:10:00.6]} 13... d5 {[%clk 0:09:08.6]} 14.
Nb3 {[%clk 0:09:59.4]} 14... Ne7 {[%clk 0:08:25.8]} 15. exd5 {[%clk 0:08:31.5]}
15... Qxd5 {[%clk 0:08:25.6]} 16. c4 {[%clk 0:08:28.6]} 16... Qd6 {[%clk
0:08:17.3]} 17. Nc5 {[%clk 0:08:27.6]} 17... Bxc5 {[%clk 0:07:55.7]} 18. bxc5
{[%clk 0:08:29.5]} 18... Qxc5 {[%clk 0:07:04.7]} 19. Ba3 {[%clk 0:08:28.8]}
19... Qa5 {[%clk 0:07:01.7]} 20. d4 {[%clk 0:08:29.8]} 20... Ng6 {[%clk
0:06:57.5]} 21. Bb2 {[%clk 0:06:58.4]} 21... e4 {[%clk 0:05:41.8]} 22. d5 {[%clk
0:06:40.6]} 22... Ree8 {[%clk 0:05:37.5]} 23. Nd2 {[%clk 0:06:00.2]} 23... e3
{[%clk 0:04:18.4]} 24. fxe3 {[%clk 0:04:33.4]} 24... Nd7 {[%clk 0:04:17.9]} 25.
Nb3 {[%clk 0:03:18.1]} 25... Qb4 {[%clk 0:04:18.3]} 26. Ba3 {[%clk 0:03:09.4]}
26... Qb6 {[%clk 0:04:19.3]} 27. Nd4 {[%clk 0:02:42.3]} 27... Qf6 {[%clk
0:03:16]} 28. Bb2 {[%clk 0:01:54.7]} 28... Qg5 {[%clk 0:02:20.6]} 29. e4 {[%clk
0:01:17.7]} 29... Nf4 {[%clk 0:01:24.9]} 30. Kh2 {[%clk 0:00:58.3]} 30... Ne5
{[%clk 0:01:25.6]} 31. Re3 {[%clk 0:00:27.8]} 31... Nh5 {[%clk 0:00:48.6]} 32.
Rae1 {[%clk 0:00:16.5]} 32... c5 {[%clk 0:00:49.4]} 33. Nf3 {[%clk 0:00:10.9]}
33... Qf4+ {[%clk 0:00:40.4]} 34. Kg1 {[%clk 0:00:10]} 34... f6 {[%clk
0:00:25.3]} 35. Nxe5 {[%clk 0:00:10.1]} 35... fxe5 {[%clk 0:00:26.1]} 36. Rf3
{[%clk 0:00:11.7]} 36... Qh4 {[%clk 0:00:22.7]} 37. Ref1 {[%clk 0:00:12.7]}
37... Nf6 {[%clk 0:00:16.1]} 38. Re3 {[%clk 0:00:07.7]} 38... b6 {[%clk
0:00:13]} 39. Rf5 {[%clk 0:00:05.7]} 39... Nd7 {[%clk 0:00:12.1]} 40. Ref3
{[%clk 0:00:06.7]} 40... Rf8 {[%clk 0:00:13.1]} 41. Qf2 {[%clk 0:00:06.9]} 41...
Qe7 {[%clk 0:00:10.6]} 42. Qg3 {[%clk 0:00:06.3]} 42... Rxf5 {[%clk 0:00:10.2]}
43. Rxf5 {[%clk 0:00:08.2]} 43... Re8 {[%clk 0:00:11]} 44. Qg6 {[%clk
0:00:08.6]} 44... b5 {[%clk 0:00:10.2]} 45. axb5 {[%clk 0:00:09.4]} 45... axb5
{[%clk 0:00:11.6]} 46. Bc1 {[%clk 0:00:10.8]} 46... Nf8 {[%clk 0:00:11.4]} 47.
Qg3 {[%clk 0:00:08.8]} 47... Kh7 {[%clk 0:00:12.5]} 48. cxb5 {[%clk 0:00:10.1]}
48... c4 {[%clk 0:00:13.3]} 49. b6 {[%clk 0:00:08.4]} 49... Ng6 {[%clk
0:00:14.1]} 50. h4 {[%clk 0:00:08]} 50... Nxh4 {[%clk 0:00:14.1]} 51. Rf2 {[%clk
0:00:09]} 51... Ng6 {[%clk 0:00:15.1]} 52. Be3 {[%clk 0:00:09.5]} 52... Rb8
{[%clk 0:00:14.3]} 53. Rc2 {[%clk 0:00:09.8]} 53... Qb4 {[%clk 0:00:14.8]} 54.
Qf3 {[%clk 0:00:06.9]} 54... Rf8 {[%clk 0:00:14.6]} 55. Qe2 {[%clk 0:00:06.8]}
55... Nf4 {[%clk 0:00:14.2]} 56. Bxf4 {[%clk 0:00:07.8]} 56... Rxf4 {[%clk
0:00:15.5]} 57. Rxc4 {[%clk 0:00:07.7]} 57... Qxb6+ {[%clk 0:00:16.2]} 58. Kh2
{[%clk 0:00:09.2]} 58... Rh4+ {[%clk 0:00:16.9]} 59. Kg3 {[%clk 0:00:10.6]}
59... Qf6 {[%clk 0:00:18.4]} 60. Rc6 {[%clk 0:00:06.4]} 60... Qf4# {[%clk
0:00:19.1]} 0-1

[Event "GrandPrix_29.05"]
[Site "Chess.com"]
[Date "2020.05.29"]
[Round "3"]
[White "FLamps8"]
[Black "troisi"]
[Result "1-0"]
[WhiteElo "2135"]
[BlackElo "1485"]
[TimeControl "600+2"]
[EndTime "10:28:50 PDT"]
[Termination "FLamps8 won by resignation"]

1. d4 {[%clk 0:10:01.9]} 1... Nf6 {[%clk 0:09:48.9]} 2. Bf4 {[%clk 0:10:00.2]}
2... e6 {[%clk 0:09:17.5]} 3. e3 {[%clk 0:09:53.6]} 3... d6 {[%clk 0:08:51]} 4.
Nf3 {[%clk 0:09:38.6]} 4... Be7 {[%clk 0:08:50.6]} 5. h3 {[%clk 0:09:39.4]} 5...
Nbd7 {[%clk 0:08:49.9]} 6. Bd3 {[%clk 0:09:37.6]} 6... O-O {[%clk 0:08:50.6]} 7.
O-O {[%clk 0:09:38.3]} 7... Re8 {[%clk 0:08:46.1]} 8. e4 {[%clk 0:09:18.4]} 8...
Nf8 {[%clk 0:06:03.5]} 9. Nc3 {[%clk 0:08:39.3]} 9... a6 {[%clk 0:05:55.6]} 10.
e5 {[%clk 0:08:17.3]} 10... dxe5 {[%clk 0:05:35]} 11. Nxe5 {[%clk 0:08:19.2]}
11... Ng6 {[%clk 0:05:21.9]} 12. Bh2 {[%clk 0:08:18.6]} 12... c5 {[%clk
0:05:10.5]} 13. dxc5 {[%clk 0:07:43]} 13... Bxc5 {[%clk 0:05:12.4]} 14. Qf3
{[%clk 0:07:20.9]} 14... Bd6 {[%clk 0:04:24]} 15. Bxg6 {[%clk 0:05:18.6]} 15...
hxg6 {[%clk 0:04:10.5]} 16. Rad1 {[%clk 0:05:18.5]} 16... Qc7 {[%clk 0:03:32.4]}
17. Rxd6 {[%clk 0:05:18.2]} 17... Qxd6 {[%clk 0:03:33.8]} 18. Nxf7 {[%clk
0:05:19.2]} 18... Qb6 {[%clk 0:02:34.1]} 19. Nd6 {[%clk 0:03:50.5]} 19... Rf8
{[%clk 0:02:16]} 20. Na4 {[%clk 0:01:24.6]} 20... Qb4 {[%clk 0:01:48.5]} 21. Qb3
{[%clk 0:01:25]} 21... Qxb3 {[%clk 0:00:34.4]} 22. axb3 {[%clk 0:01:26.9]} 22...
Bd7 {[%clk 0:00:35.6]} 23. Nb6 {[%clk 0:01:04.8]} 23... Rab8 {[%clk 0:00:33.9]}
24. Ndc4 {[%clk 0:00:30.4]} 24... Rbd8 {[%clk 0:00:21.1]} 25. Bc7 {[%clk
0:00:28.9]} 25... Rde8 {[%clk 0:00:22.3]} 26. Bd6 {[%clk 0:00:28.1]} 26... Rf7
{[%clk 0:00:17.8]} 27. Ne5 {[%clk 0:00:27.5]} 27... Bc6 {[%clk 0:00:16.5]} 28.
Nxf7 {[%clk 0:00:24]} 28... Kxf7 {[%clk 0:00:18.4]} 29. Nc4 {[%clk 0:00:16.2]}
29... Nd7 {[%clk 0:00:18.6]} 30. Rd1 {[%clk 0:00:13.9]} 30... e5 {[%clk
0:00:17.6]} 31. Bc7 {[%clk 0:00:10.9]} 31... Re6 {[%clk 0:00:16.7]} 32. Re1
{[%clk 0:00:07]} 32... e4 {[%clk 0:00:16.9]} 33. Bf4 {[%clk 0:00:07]} 33... Nf6
{[%clk 0:00:15.1]} 34. Ne3 {[%clk 0:00:07.2]} 34... Ke8 {[%clk 0:00:14.6]} 35.
Rd1 {[%clk 0:00:08.5]} 35... Nd7 {[%clk 0:00:14.5]} 36. Nc4 {[%clk 0:00:09.5]}
36... Nf6 {[%clk 0:00:15]} 37. Na5 {[%clk 0:00:10]} 37... Bd5 {[%clk 0:00:13.8]}
38. c4 {[%clk 0:00:10.3]} 38... Bc6 {[%clk 0:00:15]} 39. Nxc6 {[%clk 0:00:11.1]}
39... Rxc6 {[%clk 0:00:16.9]} 40. Be5 {[%clk 0:00:11.9]} 40... Rb6 {[%clk
0:00:16.9]} 41. Re1 {[%clk 0:00:07.6]} 41... Rxb3 {[%clk 0:00:16.4]} 42. Bxf6
{[%clk 0:00:08.5]} 42... gxf6 {[%clk 0:00:18.3]} 43. Rxe4+ {[%clk 0:00:09.9]}
43... Kf7 {[%clk 0:00:19.7]} 44. Re2 {[%clk 0:00:10.6]} 44... Rb4 {[%clk
0:00:18.4]} 45. Rc2 {[%clk 0:00:11.3]} 45... Ke6 {[%clk 0:00:19.9]} 46. f4
{[%clk 0:00:10.3]} 46... Kd6 {[%clk 0:00:20.5]} 47. g4 {[%clk 0:00:10.4]} 47...
Kc5 {[%clk 0:00:21.3]} 48. h4 {[%clk 0:00:11.3]} 48... a5 {[%clk 0:00:20.9]} 49.
Kg2 {[%clk 0:00:11.8]} 49... a4 {[%clk 0:00:22]} 50. h5 {[%clk 0:00:12.8]} 50...
gxh5 {[%clk 0:00:22.6]} 51. gxh5 {[%clk 0:00:14.7]} 51... f5 {[%clk 0:00:17.6]}
52. Kg3 {[%clk 0:00:15.7]} 52... Rb6 {[%clk 0:00:18.7]} 53. Kh4 {[%clk
0:00:16.7]} 53... Rh6 {[%clk 0:00:19.7]} 54. Kg5 {[%clk 0:00:17.6]} 54... Rh8
{[%clk 0:00:21.6]} 55. h6 {[%clk 0:00:18.4]} 55... Kb4 {[%clk 0:00:23]} 56. Kg6
{[%clk 0:00:18.5]} 56... Kb3 {[%clk 0:00:24.5]} 57. Rh2 {[%clk 0:00:19.3]} 57...
Kxc4 {[%clk 0:00:24.8]} 58. Kxf5 {[%clk 0:00:20.6]} 58... b5 {[%clk 0:00:25.6]}
59. Kg6 {[%clk 0:00:21.7]} 59... b4 {[%clk 0:00:27.1]} 60. h7 {[%clk 0:00:22.9]}
60... Kb3 {[%clk 0:00:26.1]} 61. Kg7 {[%clk 0:00:22.9]} 61... Rc8 {[%clk
0:00:26.8]} 62. h8=Q {[%clk 0:00:23.6]} 62... Rc7+ {[%clk 0:00:26.2]} 63. Kg6
{[%clk 0:00:23.6]} 63... a3 {[%clk 0:00:26.8]} 64. bxa3 {[%clk 0:00:24.1]} 64...
bxa3 {[%clk 0:00:28.7]} 65. Qg8+ {[%clk 0:00:24.8]} 65... Ka4 {[%clk 0:00:29]}
66. Qa8+ {[%clk 0:00:24.6]} 66... Kb3 {[%clk 0:00:29.5]} 67. Qb8+ {[%clk
0:00:25.6]} 67... Rb7 {[%clk 0:00:29]} 68. Qxb7+ {[%clk 0:00:26.4]} 68... Ka4
{[%clk 0:00:30.6]} 69. Qa6+ {[%clk 0:00:26.5]} 1-0

[Event "GrandPrix_29.05"]
[Site "Chess.com"]
[Date "2020.05.29"]
[Round "3"]
[White "Didici"]
[Black "Azatic"]
[Result "0-1"]
[WhiteElo "2282"]
[BlackElo "2540"]
[TimeControl "600+2"]
[EndTime "10:28:53 PDT"]
[Termination "Azatic won by resignation"]

1. d4 {[%clk 0:09:58.9]} 1... Nf6 {[%clk 0:10:00.4]} 2. c4 {[%clk 0:09:50.2]}
2... g6 {[%clk 0:10:01.2]} 3. f3 {[%clk 0:09:48.5]} 3... Bg7 {[%clk 0:10:02.1]}
4. e4 {[%clk 0:09:49.3]} 4... O-O {[%clk 0:10:03]} 5. Ne2 {[%clk 0:09:49.8]}
5... d6 {[%clk 0:10:01.8]} 6. Be3 {[%clk 0:09:50.3]} 6... a6 {[%clk 0:10:01.2]}
7. Na3 {[%clk 0:09:48.5]} 7... c6 {[%clk 0:09:58.5]} 8. c5 {[%clk 0:09:27.9]}
8... b5 {[%clk 0:09:52.2]} 9. cxb6 {[%clk 0:09:27.1]} 9... Nbd7 {[%clk
0:09:52.6]} 10. Qd2 {[%clk 0:08:56.4]} 10... Nxb6 {[%clk 0:09:41.5]} 11. Nf4
{[%clk 0:08:41.6]} 11... Rb8 {[%clk 0:06:44.9]} 12. Rc1 {[%clk 0:08:23.9]} 12...
Qd7 {[%clk 0:05:33.4]} 13. Be2 {[%clk 0:08:08.7]} 13... Kh8 {[%clk 0:05:04.2]}
14. O-O {[%clk 0:07:52.7]} 14... Qb7 {[%clk 0:04:30.8]} 15. Rc2 {[%clk
0:07:11.2]} 15... Nbd7 {[%clk 0:04:29.2]} 16. Nd3 {[%clk 0:06:50.7]} 16... c5
{[%clk 0:04:04.4]} 17. dxc5 {[%clk 0:06:35.3]} 17... Nxc5 {[%clk 0:04:05.3]} 18.
Nxc5 {[%clk 0:06:29.3]} 18... dxc5 {[%clk 0:04:07.2]} 19. Bxc5 {[%clk
0:06:30.4]} 19... Be6 {[%clk 0:04:01.5]} 20. Nc4 {[%clk 0:05:30.8]} 20... Rfd8
{[%clk 0:03:49.6]} 21. Qe3 {[%clk 0:03:54.9]} 21... Rbc8 {[%clk 0:03:48]} 22.
Kh1 {[%clk 0:03:50.6]} 22... h5 {[%clk 0:02:57]} 23. b4 {[%clk 0:03:40.5]} 23...
Kh7 {[%clk 0:02:47.3]} 24. Bb6 {[%clk 0:02:41.6]} 24... Re8 {[%clk 0:02:41.3]}
25. Na5 {[%clk 0:02:37.4]} 25... Qb8 {[%clk 0:02:33.9]} 26. Rxc8 {[%clk
0:02:27.6]} 26... Bxc8 {[%clk 0:02:35.8]} 27. Nc6 {[%clk 0:02:16]} 27... Qd6
{[%clk 0:02:27.9]} 28. b5 {[%clk 0:01:41.3]} 28... axb5 {[%clk 0:01:50.4]} 29.
Bxb5 {[%clk 0:01:43.2]} 29... Nd7 {[%clk 0:01:51.3]} 30. Bd4 {[%clk 0:01:34.3]}
30... e5 {[%clk 0:01:48.4]} 31. Bc3 {[%clk 0:01:27.5]} 31... Ba6 {[%clk
0:01:27.1]} 32. Bxa6 {[%clk 0:01:18.6]} 32... Qxc6 {[%clk 0:01:27.3]} 33. Be2
{[%clk 0:01:12.8]} 33... Rc8 {[%clk 0:01:20]} 34. Bb4 {[%clk 0:01:09.2]} 34...
Qa4 {[%clk 0:01:11.6]} 35. a3 {[%clk 0:01:09]} 35... Nf6 {[%clk 0:00:52.9]} 36.
Qd3 {[%clk 0:01:01.7]} 36... h4 {[%clk 0:00:50.3]} 37. g4 {[%clk 0:00:36]} 37...
hxg3 {[%clk 0:00:27]} 38. hxg3 {[%clk 0:00:37.9]} 38... Nh5 {[%clk 0:00:28.9]}
39. Kg2 {[%clk 0:00:37.5]} 39... Bh6 {[%clk 0:00:28.7]} 40. Bd1 {[%clk 0:00:26]}
40... Qa7 {[%clk 0:00:25.9]} 41. f4 {[%clk 0:00:24]} 41... exf4 {[%clk 0:00:12]}
42. Bxh5 {[%clk 0:00:24.1]} 42... gxh5 {[%clk 0:00:12]} 43. e5+ {[%clk 0:00:10]}
43... Kh8 {[%clk 0:00:13]} 44. Qf5 {[%clk 0:00:09.1]} 44... Qa8+ {[%clk
0:00:13.8]} 45. Kh3 {[%clk 0:00:08.1]} 45... Rg8 {[%clk 0:00:13.7]} 46. Qxh5
{[%clk 0:00:04.1]} 46... Rxg3+ {[%clk 0:00:07.6]} 47. Kh4 {[%clk 0:00:05.2]}
47... Rg6 {[%clk 0:00:09]} 48. Bc3 {[%clk 0:00:03.4]} 48... Qd8+ {[%clk
0:00:09.6]} 49. Kh3 {[%clk 0:00:03.8]} 49... Qd3+ {[%clk 0:00:06.7]} 50. Rf3
{[%clk 0:00:04.9]} 50... Qb1 {[%clk 0:00:08]} 51. e6+ {[%clk 0:00:05.3]} 51...
Kh7 {[%clk 0:00:09.5]} 52. Qxg6+ {[%clk 0:00:02.9]} 52... fxg6 {[%clk
0:00:11.4]} 53. e7 {[%clk 0:00:03.9]} 53... Qf5+ {[%clk 0:00:12.8]} 54. Kg2
{[%clk 0:00:04.7]} 54... Qe4 {[%clk 0:00:14]} 55. Bf6 {[%clk 0:00:05.3]} 55...
Bg7 {[%clk 0:00:14.5]} 56. Bg5 {[%clk 0:00:06.5]} 56... Bh6 {[%clk 0:00:13.2]}
57. Bf6 {[%clk 0:00:05.3]} 57... Kg8 {[%clk 0:00:14.4]} 58. Kf2 {[%clk 0:00:05]}
58... Kf7 {[%clk 0:00:15.5]} 59. Rb3 {[%clk 0:00:03.5]} 0-1

[Event "GrandPrix_29.05"]
[Site "Chess.com"]
[Date "2020.05.29"]
[Round "3"]
[White "woodhy"]
[Black "Promacherr"]
[Result "1-0"]
[WhiteElo "2073"]
[BlackElo "2170"]
[TimeControl "600+2"]
[EndTime "10:29:02 PDT"]
[Termination "woodhy won by resignation"]

1. e4 {[%clk 0:10:00.3]} 1... e6 {[%clk 0:10:00.7]} 2. d4 {[%clk 0:09:55.1]}
2... d5 {[%clk 0:10:01.5]} 3. e5 {[%clk 0:09:52.9]} 3... c5 {[%clk 0:10:01.9]}
4. c3 {[%clk 0:09:53.6]} 4... Nc6 {[%clk 0:10:02.8]} 5. Be3 {[%clk 0:09:52.4]}
5... Nh6 {[%clk 0:09:49]} 6. Nf3 {[%clk 0:09:50.8]} 6... Nf5 {[%clk 0:09:49.2]}
7. Bd3 {[%clk 0:09:26.8]} 7... Nxe3 {[%clk 0:09:42.5]} 8. fxe3 {[%clk
0:09:25.9]} 8... Be7 {[%clk 0:09:40.9]} 9. O-O {[%clk 0:09:24.8]} 9... O-O
{[%clk 0:09:41.4]} 10. Qc2 {[%clk 0:09:25.2]} 10... h6 {[%clk 0:09:38.8]} 11.
Qe2 {[%clk 0:09:23.8]} 11... f6 {[%clk 0:08:08.6]} 12. exf6 {[%clk 0:08:53.3]}
12... Bxf6 {[%clk 0:07:39.8]} 13. Bc2 {[%clk 0:08:31.9]} 13... e5 {[%clk
0:07:29.5]} 14. dxe5 {[%clk 0:07:38.7]} 14... Bxe5 {[%clk 0:06:04.5]} 15. Nxe5
{[%clk 0:07:21.3]} 15... Rxf1+ {[%clk 0:06:06.4]} 16. Qxf1 {[%clk 0:07:20.3]}
16... Nxe5 {[%clk 0:06:06.8]} 17. Nd2 {[%clk 0:07:16.2]} 17... Be6 {[%clk
0:05:23.2]} 18. Qf4 {[%clk 0:07:09.3]} 18... Ng4 {[%clk 0:04:42]} 19. h3 {[%clk
0:06:10.5]} 19... Nf6 {[%clk 0:04:36.8]} 20. Rf1 {[%clk 0:06:05.2]} 20... Qb6
{[%clk 0:03:58.7]} 21. b4 {[%clk 0:04:02.7]} 21... cxb4 {[%clk 0:03:54.1]} 22.
cxb4 {[%clk 0:04:04.6]} 22... Rc8 {[%clk 0:03:41]} 23. Bg6 {[%clk 0:03:34.5]}
23... Rc3 {[%clk 0:03:18.5]} 24. Rf3 {[%clk 0:02:54.4]} 24... Qc7 {[%clk
0:02:39.5]} 25. Qd4 {[%clk 0:02:48.2]} 25... Rc1+ {[%clk 0:02:36.1]} 26. Nf1
{[%clk 0:02:28.3]} 26... a6 {[%clk 0:02:13.9]} 27. Rxf6 {[%clk 0:01:09.6]} 27...
gxf6 {[%clk 0:02:15.8]} 28. Qxf6 {[%clk 0:01:10.6]} 28... Rc6 {[%clk 0:02:13.4]}
29. Qd4 {[%clk 0:01:00.3]} 29... Qg7 {[%clk 0:02:11.5]} 30. Qd3 {[%clk
0:00:55.8]} 30... Rc3 {[%clk 0:01:49.7]} 31. Qd2 {[%clk 0:00:43.3]} 31... Rc6
{[%clk 0:01:32.9]} 32. Qd3 {[%clk 0:00:35.9]} 32... Bf7 {[%clk 0:01:03.3]} 33.
Bf5 {[%clk 0:00:27.1]} 33... Qe5 {[%clk 0:00:53.3]} 34. Bg4 {[%clk 0:00:19.7]}
34... Bg6 {[%clk 0:00:40.3]} 35. Qd2 {[%clk 0:00:19.6]} 35... Rc2 {[%clk
0:00:38.1]} 36. Qe1 {[%clk 0:00:20.4]} 36... Be4 {[%clk 0:00:35.7]} 37. Nd2
{[%clk 0:00:13.9]} 37... Bxg2 {[%clk 0:00:15.3]} 38. Kxg2 {[%clk 0:00:11.3]}
38... Qc3 {[%clk 0:00:15.8]} 39. Qg3 {[%clk 0:00:05.8]} 39... Rxd2+ {[%clk
0:00:16.4]} 40. Kf3 {[%clk 0:00:06.5]} 40... Qf6+ {[%clk 0:00:15.2]} 41. Bf5+
{[%clk 0:00:06.3]} 41... Kf7 {[%clk 0:00:07.9]} 42. Qc7+ {[%clk 0:00:06.9]}
42... Qe7 {[%clk 0:00:09]} 43. Qf4 {[%clk 0:00:07.4]} 43... Kg7 {[%clk
0:00:08.5]} 44. Qg3+ {[%clk 0:00:04.8]} 44... Kf8 {[%clk 0:00:06.6]} 45. Qb8+
{[%clk 0:00:04.7]} 45... Kg7 {[%clk 0:00:07.6]} 46. Qg3+ {[%clk 0:00:05.3]}
46... Qg5 {[%clk 0:00:06.5]} 47. Qe5+ {[%clk 0:00:05.7]} 47... Qf6 {[%clk
0:00:07]} 48. Qg3+ {[%clk 0:00:06.4]} 48... Kf8 {[%clk 0:00:05.4]} 49. Qb8+
{[%clk 0:00:07.3]} 49... Kg7 {[%clk 0:00:06.2]} 50. Qg3+ {[%clk 0:00:08.1]}
50... Kf8 {[%clk 0:00:04.2]} 51. Qb8+ {[%clk 0:00:08.8]} 51... Kf7 {[%clk
0:00:04.5]} 52. Qc7+ {[%clk 0:00:09]} 52... Kg8 {[%clk 0:00:05.1]} 53. Qg3+
{[%clk 0:00:09.1]} 53... Qg7 {[%clk 0:00:05]} 54. Qb8+ {[%clk 0:00:09.1]} 54...
Qf8 {[%clk 0:00:05.6]} 55. Qg3+ {[%clk 0:00:10]} 55... Kh8 {[%clk 0:00:06.4]}
56. Qe5+ {[%clk 0:00:11.1]} 56... Kg8 {[%clk 0:00:04.6]} 57. Qg3+ {[%clk
0:00:11.3]} 57... Kf7 {[%clk 0:00:05]} 58. Qc7+ {[%clk 0:00:11]} 58... Qe7
{[%clk 0:00:05.7]} 59. Qf4 {[%clk 0:00:11.3]} 59... Rd1 {[%clk 0:00:03.9]} 60.
Bc2+ {[%clk 0:00:09.4]} 60... Ke8 {[%clk 0:00:04.1]} 61. Bxd1 {[%clk 0:00:08.9]}
1-0

[Event "GrandPrix_29.05"]
[Site "Chess.com"]
[Date "2020.05.29"]
[Round "3"]
[White "SavelijTartakover"]
[Black "Kopytkin"]
[Result "1/2-1/2"]
[WhiteElo "2390"]
[BlackElo "2206"]
[TimeControl "600+2"]
[EndTime "10:29:03 PDT"]
[Termination "Game drawn - insufficient material"]

1. d4 {[%clk 0:10:01.9]} 1... d5 {[%clk 0:09:58.8]} 2. c4 {[%clk 0:10:01.3]}
2... c6 {[%clk 0:09:59.3]} 3. Nf3 {[%clk 0:10:00.8]} 3... Nf6 {[%clk 0:09:59.8]}
4. e3 {[%clk 0:10:00.6]} 4... a6 {[%clk 0:09:31.3]} 5. Nc3 {[%clk 0:09:54.2]}
5... b5 {[%clk 0:09:30.3]} 6. b3 {[%clk 0:09:48.9]} 6... Bg4 {[%clk 0:09:29.6]}
7. a4 {[%clk 0:09:47]} 7... bxc4 {[%clk 0:08:45.4]} 8. bxc4 {[%clk 0:09:46.7]}
8... e6 {[%clk 0:08:45.6]} 9. c5 {[%clk 0:09:39.4]} 9... Nbd7 {[%clk 0:08:23.6]}
10. a5 {[%clk 0:09:37.4]} 10... e5 {[%clk 0:07:55.7]} 11. Qa4 {[%clk 0:09:32.5]}
11... Bxf3 {[%clk 0:07:31.1]} 12. gxf3 {[%clk 0:09:31.8]} 12... exd4 {[%clk
0:07:16.6]} 13. exd4 {[%clk 0:09:31.9]} 13... Qc7 {[%clk 0:05:31.1]} 14. Na2
{[%clk 0:09:28.5]} 14... Bxc5 {[%clk 0:04:57.8]} 15. Be3 {[%clk 0:08:45.7]}
15... Bd6 {[%clk 0:04:38.6]} 16. Rc1 {[%clk 0:08:42.7]} 16... O-O {[%clk
0:04:25.8]} 17. Rxc6 {[%clk 0:08:26.4]} 17... Qb8 {[%clk 0:04:26.4]} 18. Bxa6
{[%clk 0:08:15.2]} 18... Qb1+ {[%clk 0:03:21.8]} 19. Rc1 {[%clk 0:07:35.3]}
19... Qf5 {[%clk 0:02:32.8]} 20. Be2 {[%clk 0:07:25.5]} 20... Bf4 {[%clk
0:01:43.3]} 21. Nc3 {[%clk 0:06:30.7]} 21... Nb6 {[%clk 0:01:37.6]} 22. Qb5
{[%clk 0:06:13.6]} 22... Nc4 {[%clk 0:01:21.1]} 23. Bxc4 {[%clk 0:06:03.9]}
23... Rfb8 {[%clk 0:01:22.1]} 24. Nxd5 {[%clk 0:05:24.5]} 24... Rxb5 {[%clk
0:00:57.3]} 25. Ne7+ {[%clk 0:05:19.6]} 25... Kf8 {[%clk 0:00:58.7]} 26. Nxf5
{[%clk 0:05:19.2]} 26... Rxf5 {[%clk 0:00:59.9]} 27. a6 {[%clk 0:05:12.7]} 27...
Bxe3 {[%clk 0:00:56.8]} 28. fxe3 {[%clk 0:05:12.3]} 28... Rxf3 {[%clk
0:00:30.9]} 29. Ke2 {[%clk 0:05:08.4]} 29... Rh3 {[%clk 0:00:31.8]} 30. Rcf1
{[%clk 0:04:24.7]} 30... Ke7 {[%clk 0:00:22.8]} 31. Rf3 {[%clk 0:04:19.7]} 31...
Rh5 {[%clk 0:00:17.7]} 32. h3 {[%clk 0:04:19.3]} 32... Nd5 {[%clk 0:00:10.8]}
33. Rhf1 {[%clk 0:04:03.9]} 33... f6 {[%clk 0:00:11.6]} 34. Rf5 {[%clk
0:04:03.6]} 34... Rxf5 {[%clk 0:00:12.2]} 35. Rxf5 {[%clk 0:04:05.5]} 35... Nc7
{[%clk 0:00:13.5]} 36. Ra5 {[%clk 0:03:56.1]} 36... Ra7 {[%clk 0:00:14.3]} 37.
Kd3 {[%clk 0:03:47.2]} 37... Kd6 {[%clk 0:00:15.4]} 38. Ke4 {[%clk 0:03:35.3]}
38... Kc6 {[%clk 0:00:14.5]} 39. Kf5 {[%clk 0:03:31.8]} 39... Kb6 {[%clk
0:00:11.9]} 40. Ra4 {[%clk 0:03:31.4]} 40... Ne8 {[%clk 0:00:11.3]} 41. Bd3
{[%clk 0:03:21.1]} 41... Re7 {[%clk 0:00:09]} 42. e4 {[%clk 0:03:11.2]} 42...
Nd6+ {[%clk 0:00:07.4]} 43. Kf4 {[%clk 0:03:12]} 43... Ka7 {[%clk 0:00:08.1]}
44. Ra5 {[%clk 0:03:04.6]} 44... Ne8 {[%clk 0:00:04.2]} 45. e5 {[%clk
0:02:57.2]} 45... Nc7 {[%clk 0:00:05.1]} 46. exf6 {[%clk 0:02:26.7]} 46... gxf6
{[%clk 0:00:05.6]} 47. Bf5 {[%clk 0:02:12.3]} 47... Re8 {[%clk 0:00:05.4]} 48.
Kg4 {[%clk 0:01:19.8]} 48... Kb6 {[%clk 0:00:06]} 49. Ra3 {[%clk 0:01:18.4]}
49... Rd8 {[%clk 0:00:06.8]} 50. Bxh7 {[%clk 0:01:06.8]} 50... Rxd4+ {[%clk
0:00:05.3]} 51. Kf5 {[%clk 0:01:07.4]} 51... Nxa6 {[%clk 0:00:06.2]} 52. Kxf6
{[%clk 0:01:06.6]} 52... Nc5 {[%clk 0:00:06.7]} 53. Bf5 {[%clk 0:01:05.6]} 53...
Rd6+ {[%clk 0:00:05.8]} 54. Kg7 {[%clk 0:00:57.1]} 54... Rd5 {[%clk 0:00:05.9]}
55. Rf3 {[%clk 0:00:55]} 55... Kc7 {[%clk 0:00:05.9]} 56. h4 {[%clk 0:00:55.3]}
56... Kd6 {[%clk 0:00:07.1]} 57. h5 {[%clk 0:00:52.1]} 57... Ne6+ {[%clk
0:00:07.8]} 58. Bxe6 {[%clk 0:00:42.5]} 58... Kxe6 {[%clk 0:00:08.5]} 59. Re3+
{[%clk 0:00:40.1]} 59... Kf5 {[%clk 0:00:08.8]} 60. h6 {[%clk 0:00:38.5]} 60...
Rd7+ {[%clk 0:00:09]} 61. Kg8 {[%clk 0:00:39.3]} 61... Rd8+ {[%clk 0:00:09.9]}
62. Kf7 {[%clk 0:00:39.4]} 62... Rd7+ {[%clk 0:00:10.1]} 63. Kg8 {[%clk
0:00:31.4]} 63... Rd8+ {[%clk 0:00:11.1]} 64. Kg7 {[%clk 0:00:31.3]} 64... Rd7+
{[%clk 0:00:12.4]} 65. Kf8 {[%clk 0:00:32.2]} 65... Rd8+ {[%clk 0:00:13.5]} 66.
Ke7 {[%clk 0:00:32.1]} 66... Rh8 {[%clk 0:00:14.2]} 67. Rh3 {[%clk 0:00:32.4]}
67... Kg6 {[%clk 0:00:14.6]} 68. h7 {[%clk 0:00:33.5]} 68... Rxh7+ {[%clk
0:00:15.5]} 69. Rxh7 {[%clk 0:00:34.1]} 69... Kxh7 {[%clk 0:00:16.1]} 1/2-1/2